Cogmind - Beta 14 @@@ ROGUE MODE // 2024.08.30 @ 11:59:45 Player: Andru7428 Result: Destroyed by 8R-AWN with 8R-AWN's Boregun Performance ------------- Evolutions (0) 0 Regions Visited (3) 600 Robots Destroyed (33) 165 Value Destroyed (623) 623 Prototype IDs (2) 40 Alien Tech Used (0) 0 Bonus (-64) -64 TOTAL SCORE: 1364 Bonus ------- Friendly Fire -64 Cogmind --------- Core Integrity 0/250 Matter 191/300 Energy 100/100 System Corruption 3% Temperature Cool (0) Movement Treading (160) Location -10/Exiles Parts ------- > --- POWER (1) -------- (None) > --- PROPULSION (2) --- Light Treads > --- UTILITY (2) ------ Light Armor Plating Light Armor Plating > --- WEAPON (2) ------- Hammer Katana > --- INVENTORY (5) ---- Aluminum Leg Rocket Launcher Peak State ------------ > --- POWER ------------ Ion Engine > --- PROPULSION ------- Light Treads Light Treads > --- UTILITY ---------- Large Storage Unit Light Armor Plating > --- WEAPON ----------- Assault Rifle High-powered Shotgun > --- INVENTORY -------- Nuclear Core Light Treads Aluminum Leg Improved Heat Sink High-capacity Matter Pod Targeting Computer Light Armor Plating Light Armor Plating Light Armor Plating Light Armor Plating Light Armor Plating EM Pulse Gun Assault Rifle Grenade Launcher Katana [Rating: 11] Favorites ----------- Power Ion Engine Engine Ion Engine Propulsion Light Treads Treads Light Treads Utility Light Armor Plating Device Seismic Detector Storage Large Storage Unit Protection Light Armor Plating Weapon Assault Rifle Ballistic Gun Assault Rifle Launcher Rocket Launcher Impact Weapon Hammer Slashing Weapon Katana Build | -11 -10 -10 -10 ------- Run | Yrd Mat Min Exi Slots Evolved . | . . . . Power . | . . . . Propulsion . | . . . . Utility . | . . . . Weapon . | . . . . Parts Attached 42 | 7 19 7 9 Power 2 | 1 1 . . Engine 2 | 1 1 . . Core . | . . . . Reactor . | . . . . Propulsion 3 | 2 . . 1 Treads 3 | 2 . . 1 Leg . | . . . . Wheel . | . . . . Hover . | . . . . Flight . | . . . . Utility 20 | 2 12 2 4 Device 4 | 1 3 . . Storage 3 | 1 2 . . Processor . | . . . . Hackware . | . . . . Protection 13 | . 7 2 4 Artifact . | . . . . Weapon 17 | 2 6 5 4 Energy Gun . | . . . . Energy Cannon . | . . . . Ballistic Gun 9 | 2 4 3 . Ballistic Cannon . | . . . . Launcher 5 | . 2 2 1 Special Weapon . | . . . . Impact Weapon 1 | . . . 1 Slashing Weapon 2 | . . . 2 Piercing Weapon . | . . . . Special Melee Weapon . | . . . . Unidentified Prototypes . | . . . . Parts Lost 8 | . 3 . 5 Power 2 | . 1 . 1 Propulsion 2 | . . . 2 Utility 4 | . 2 . 2 Weapon . | . . . . Highest Loss Streak 5 | . 2 . 5 To Critical Strikes 3 | . . . 3 Average Slot Usage (%) 99 | . 99 100 95 Engine 13 | . 14 14 12 Treads 27 | . 28 28 25 Device 2 | . 5 . . Storage 13 | . 14 14 8 Protection 12 | . 8 14 19 Ballistic Gun 26 | . 27 27 15 Peak Build Rating 11 | 7 8 11 11 Average Rating 8 | 5 7 10 9 On Entrance 6 | . 7 8 11 Naked Turns . | . . . . Heaviest Build 34 | 13 32 33 34 Greatest Support 40 | 40 40 40 40 Greatest Overweight (x) . | . . . . Average Overweight (x) . | . . . . Largest Inventory Capacity 15 | 8 15 15 15 Average Capacity 13 | 7 12 15 11 Most Carried 15 | 6 15 15 15 Average Carried 11 | 3 9 14 10 Final Capacity 15 | 8 15 15 5 Final Carried 15 | 6 15 15 2 Class Distribution -------------------- 100% | Mutant Dominant Class ---------------- Mutant | -10/Materials Mutant | -10/Mines Mutant | -10/Exiles Resources | -11 -10 -10 -10 ----------- Run | Yrd Mat Min Exi Matter Collected 992 | 254 308 390 40 Remotely . | . . . . Salvage Created 800 | 23 382 384 11 Parts 58 | 4 36 18 . Haulers Intercepted 1 | . 1 . . Recyclers Shooed 2 | 1 . 1 . Parts Field Recycled . | . . . . Retrieved Matter . | . . . . Parts Self-Destructed . | . . . . Prevented . | . . . . Kills | -11 -10 -10 -10 ------- Run | Yrd Mat Min Exi Combat Hostiles Destroyed 28 | . 14 10 4 Guns 13 | . 6 7 . AOE 15 | . 8 3 4 Classes Destroyed 8 | 1 5 1 1 Worker 3 | . 3 . . Tunneler 1 | 1 . . . Hauler 1 | . 1 . . Recycler 3 | . . 3 . Watcher 1 | . 1 . . Swarmer 12 | . 6 6 . Grunt 12 | . 8 4 . Assembled 4 | . . . 4 Best Kill Streak 9 | 1 9 4 4 Combat Bots Only 6 | . 6 3 4 Max Kills in Single Turn 3 | 1 3 2 2 Gunslinging . | . . . . Exploded 2 | . 2 2 2 Melee . | . . . . Uniques/NPCs Destroyed . | . . . . Combat | -11 -10 -10 -10 -------- Run | Yrd Mat Min Exi Hostile Shots Fired 141 | . 51 40 50 Missed 37 | . 15 11 11 Damage Taken 1409 | . 459 290 660 Core 264 | . 41 39 184 Absorbed by Shields . | . . . . Core Remaining (%) 100 | 100 . . . Volleys Fired 69 | 3 34 24 8 Largest 2 | 2 2 2 1 Hottest 45 | 40 40 45 33 Shots Fired 117 | 6 62 42 7 Gun 100 | 6 56 38 . Cannon . | . . . . Launcher 17 | . 6 4 7 Special . | . . . . Kinetic 100 | 6 56 38 . Thermal . | . . . . Explosive 17 | . 6 4 7 Electromagnetic . | . . . . Robot Hit Streak 12 | 2 5 12 2 Robot Miss Streak 3 | 1 3 2 3 Penetration Max . | . . . . Secondary Targets 1 | . 1 . . Max Gunslinging Chain 1 | . 1 . . Shots Hit Robots 79 | 3 35 31 10 Core Hits 63 | 3 29 20 11 Critical Kills . | . . . . Critical Parts Destroyed . | . . . . Critical Strikes 1 | . . . 1 Sever 1 | . . . 1 Melee Attacks 9 | . . . 9 Impact 2 | . . . 2 Slashing 7 | . . . 7 Piercing . | . . . . Sneak Attacks . | . . . . Combat Hostiles . | . . . . Follow-up Attacks 2 | . . . 2 Damage Inflicted 2449 | 36 1064 733 616 Guns 907 | 32 480 395 . Cannons . | . . . . Explosions 1307 | . 572 338 397 Melee 219 | . . . 219 Ramming 16 | 4 12 . . Kinetic 907 | 32 480 395 . Thermal . | . . . . Explosive 1307 | . 572 338 397 Electromagnetic . | . . . . Impact 38 | . . . 38 Slashing 181 | . . . 181 Piercing . | . . . . Highest Corruption 3 | . 3 3 3 Average Corruption 2 | . 2 3 3 Corruption Purged . | . . . . Corruption Blocked . | . . . . Effects 38 | . 9 24 5 Message Errors 11 | . 4 5 2 Matter Fused 2 | . 1 . 1 Heat Flow Errors 2 | . 1 1 . Energy Discharges 7 | . 1 6 . Parts Rejected 1 | . 1 . . Parts Fused 1 | . . 1 . Data Loss (minor) 4 | . . 4 . Data Loss (major) 4 | . 1 3 . Misfires 1 | . . 1 . Alerts 2 | . . 1 1 Weapon Failures 3 | . . 2 1 Overload Shots . | . . . . Overflow Damage 30 | . 14 . 16 Projectiles . | . . . . Explosions 30 | . 14 . 16 Melee . | . . . . Knockbacks . | . . . . Impact . | . . . . Kinetic . | . . . . Secondary . | . . . . Self-Inflicted Damage 60 | . 60 . . Shots 2 | . 2 . . Rammed 5 | 3 2 . . Targets Rammed 5 | 3 2 . . Kicked . | . . . . Crushed . | . . . . Highest Temperature 134 | . 134 126 16 Average Temperature 22 | . 27 26 7 Received Heat Transfer 219 | . 138 81 . Siege Activations . | . . . . Robots Corrupted . | . . . . Combat Hostiles . | . . . . Parts Fried . | . . . . Impact Corruptions . | . . . . Robots Melted . | . . . . Combat Hostiles . | . . . . Parts Melted . | . . . . Heat Transferred . | . . . . Parts Sabotaged . | . . . . Parts Stolen . | . . . . Parts Stripped . | . . . . Power Chain Reactions . | . . . . Alert | -11 -10 -10 -10 ------- Run | Yrd Mat Min Exi Peak Influence 275 | 5 222 275 . Initial 17 | . 3 17 . Average 80 | 2 54 109 . Maximum Alert Level 1 | . 1 1 . Low Security (%) 91 | 100 97 85 . Level 1 8 | . 2 14 . Level 2 . | . . . . Level 3 . | . . . . Level 4 . | . . . . Level 5 . | . . . . High Security . | . . . . Max Security . | . . . . Squads Dispatched 3 | . 2 1 . Investigation 3 | . 2 1 . Extermination . | . . . . Reinforcement . | . . . . Assault . | . . . . Garrison . | . . . . Intercept . | . . . . Searches Triggered . | . . . . Construction Impeded . | . . . . Haulers Reinforced . | . . . . Active Scanning Responses . | . . . . Cargo Convoy Interrupts . | . . . . Stealth | -11 -10 -10 -10 --------- Run | Yrd Mat Min Exi Distress Signals 1 | . 1 . . Communications Jammed . | . . . . Distress Signals . | . . . . Times Spotted 46 | . 26 12 8 Peak Tracking Total 9 | . 8 3 9 Tactical Retreats 3 | . 1 2 . Traps | -11 -10 -10 -10 ------- Run | Yrd Mat Min Exi Traps Triggered 2 | . 2 . . Indirectly . | . . . . Trap Hack Attempts . | . . . . Triggered . | . . . . Disarmed . | . . . . Reprogrammed . | . . . . Reused . | . . . . Traps Extracted . | . . . . Installed . | . . . . Triggered . | . . . . Machines | -11 -10 -10 -10 ---------- Run | Yrd Mat Min Exi Machines Disabled 7 | . 2 . 5 Max in Single Turn 2 | . 1 . 2 Machines Repaired . | . . . . Machines Dismantled . | . . . . Machines Sabotaged . | . . . . Overloaded Fab Kills . | . . . . Hacking | -11 -10 -10 -10 --------- Run | Yrd Mat Min Exi Machines Accessed 6 | . 5 1 . Terminals 5 | . 5 . . Fabricators . | . . . . Repair Stations . | . . . . Recycling Units . | . . . . Scanalyzers . | . . . . Garrison Access . | . . . . Total Hacks 15 | . 14 1 . Successful 9 | . 8 1 . Failed 6 | . 6 . . Catastrophic . | . . . . Database Lockouts . | . . . . Manual 9 | . 9 . . Terminals 14 | . 14 . . Fabricators . | . . . . Repair Stations . | . . . . Recycling Units . | . . . . Scanalyzers . | . . . . Garrison Access . | . . . . Terminal Hacks 5 | . 4 1 . Robot Analysis 1 | . 1 . . Prototype ID Bank 1 | . 1 . . Open Door 1 | . . 1 . Unreport Threat 1 | . 1 . . Locate Traps 1 | . 1 . . Fabricator Hacks . | . . . . Repair Station Hacks . | . . . . Recycling Unit Hacks . | . . . . Scanalyzer . | . . . . Garrison Access Hacks . | . . . . Unauthorized Hacks 4 | . 4 . . Terminals 4 | . 4 . . Botnet 4 | . 4 . . Fabricators . | . . . . Repair Stations . | . . . . Recycling Units . | . . . . Scanalyzers . | . . . . Garrison Access . | . . . . Data Cores Recovered . | . . . . Used . | . . . . Hacking Detections 5 | . 5 . . Full Trace Events 1 | . 1 . . Feedback Events 1 | . 1 . . Corruption 1 | . 1 . . Feedback Blocked . | . . . . Robot Schematics Acquired . | . . . . Robots Built . | . . . . Authchips . | . . . . Time . | . . . . Total Robot Build Rating . | . . . . Part Schematics Acquired . | . . . . Parts Built . | . . . . Authchips . | . . . . Time . | . . . . Total Part Build Rating . | . . . . Parts Repaired . | . . . . Time . | . . . . Parts Recycled . | . . . . Recycled Matter . | . . . . Retrieved Matter . | . . . . Retrieved Components . | . . . . Parts Scanalyzed . | . . . . Part Schematics Acquired . | . . . . Parts Damaged . | . . . . Bothacking | -11 -10 -10 -10 ------------ Run | Yrd Mat Min Exi Used RIF Installer . | . . . . Robots Hacked . | . . . . Non-combat . | . . . . Combat . | . . . . Robot Hacks Applied . | . . . . Relay Couplers Released . | . . . . Fabnet Peak Effective % . | . . . . Robots Rewired . | . . . . Allies Hacked . | . . . . Hacks Repelled . | . . . . Allies | -11 -10 -10 -10 -------- Run | Yrd Mat Min Exi Total Allies . | . . . . Largest Group . | . . . . Highest-Rated Group . | . . . . Highest-Rated Ally . | . . . . Total Orders . | . . . . Ally Attacks . | . . . . Total Damage . | . . . . Kills . | . . . . Allies Corrupted . | . . . . Allies Melted . | . . . . Intel | -11 -10 -10 -10 ------- Run | Yrd Mat Min Exi Robot Analysis Total 1 | . 1 . . Derelict Logs Recovered 1 | . . 1 . Drone Launches . | . . . . Drone Recoveries . | . . . . Exploration | -11 -10 -10 -10 ------------- Run | Yrd Mat Min Exi Turns Passed 2562 | 109 1035 1175 243 Spaces Moved 1363 | 54 522 674 113 Core 6 | 6 . . . Treads 1357 | 48 522 674 113 Legs . | . . . . Wheels . | . . . . Hover . | . . . . Flight . | . . . . Fastest Speed 50 | 50 160 160 160 Average Speed 159 | 147 160 160 160 Slowest Speed 160 | 160 160 160 160 Overloaded Moves . | . . . . Propulsion Burnouts . | . . . . Robots Hopped . | . . . . Cave-ins Triggered . | . . . . Exploration Rate (%) 44 | 4 63 96 14 Regions Visited 3 Branch Regions 2 Pre-discovered Areas . | . . . . Known Exits Taken . | . . . . Unknown Exits Taken 3 | 1 1 1 . Scrap Searched 1 | . . 1 . Spaces Dug . | . . . . Terrain Destroyed 111 | . 32 36 43 Melee . | . . . . Projectile . | . . . . AOE 111 | . 32 36 43 Terrain Rammed 2 | . 2 . . Walls Destroyed . | . . . . Machines Disabled . | . . . . Actions | -11 -10 -10 -10 --------- Run | Yrd Mat Min Exi Total 1619 | 72 656 730 161 Wait 70 | . 53 15 2 Move 1361 | 54 521 673 113 Hop . | . . . . Pick Up 32 | 6 16 4 6 Fast Attach 10 | 7 1 2 . Attach 6 | . 3 . 3 Detach . | . . . . Swap 26 | . 15 5 6 Drop 32 | . 9 7 16 Fire 69 | 3 34 24 8 Melee 7 | . . . 7 Ram 2 | . 2 . . Kick . | . . . . Crush 4 | 2 2 . . Escape Stasis . | . . . . Rewire . | . . . . Trap . | . . . . Miscellaneous . | . . . . Route ------- -11/Scrapyard -10/Materials (discovered 4 exits: [*Mat x3] / *Min) -10/Mines (discovered 3 exits: [*Mat x2] / [*Exi]) -10/Exiles History --------- Turn | Location | Event 3 | -11/Scrapyard | Discovered new exit (range 15) 110 | -11/Scrapyard | Entered Materials 318 | -10/Materials | Build established: Mutant 479 | -10/Materials | Discovered new exit (range 8) 565 | -10/Materials | Discovered new exit (range 9) 660 | -10/Materials | Discovered new exit (range 16) 846 | -10/Materials | Discovered new exit (range 4) 1145 | -10/Materials | Entered Mines 1165 | -10/Mines | Discovered new exit (range 6) 1260 | -10/Mines | Discovered new exit (range 6) 1404 | -10/Mines | Met a Derelict shopkeep closing up shop 1678 | -10/Mines | Received a Rocket Launcher from a helpful Derelict 1824 | -10/Mines | Deemed a non-threat by the Exiles lab entrance 2313 | -10/Mines | Discovered new exit (range 5) 2320 | -10/Mines | Entered Exiles 2444 | -10/Exiles | Met 8R-AWN 2516 | -10/Exiles | Attacked by the Exiles 2531 | -10/Exiles | Core integrity fell below 50% 2554 | -10/Exiles | Core integrity fell below 20% 2563 | -10/Exiles | Destroyed by 8R-AWN with 8R-AWN's Boregun Last Messages --------------- 02537_ Penetrated by HV Slug. 02537_ Critical hit (Destroy). 02537_ HV Slug penetrates Wall. 02537_ Penetrated by HV Slug. 02537_ HV Slug penetrates Wall. 02541_ Penetrated by HV Slug. 02547_ Critical hit (Destroy). 02547_ Penetrated by HV Slug. 02549_ 8R-AWN Prototype Device severed. 02549_ Hammer follow-up attack on 8R-AWN. 02551_ Penetrated by HV Slug. 02551_ Lgt. Armor Plating destroyed. 02552_ & ZJKECP<2GWQCEOXCI 02559_ HV Slug penetrates Wall. 02561_ Hammer follow-up attack on 8R-AWN. 02561_ Penetrated by HV Slug. 02561_ Critical hit (Destroy). 02561_ HV Slug penetrates Wall. 02563_ Penetrated by HV Slug. Map ----- +----------------------------------------------------+ | ?????????????????????????????????????????????????? | | ?????????????????????????????????????????????????? | | ?????????????????????????????????????????????????? | | ?????????????????????????????????????????????????? | | ?????????????????????????????????????????????????? | | ?????????????????????????????????????????????????? | | ?????????????????????????????????????????????????? | | ?????????????????????????????????????????????????? | | ?????????????????????????????????????????????????? | | ?????????????????????????????????????????????????? | | ?????????????????????????????????????????????????? | | ?????????????????????????????????????????????????? | | ?????????????????????????????????????????????????? | | ?????????????????????????????????????????????????? | | ?????????????????????????????????????????????????? | | ?????????????????????????????????????????????????? | | ??????????????????????????????????????????????? ? | | ??????????????????????????????????????????????? | | ??????????????????????????????????????????????? | | ??????????????????????????????????????????????# | | ????????????????????????????????????????????## | | ??????????????????????????##????????????????# | | ???????????????????????### ##???????????????# | | ??????????????????????## #?#????????????## | | ?????????????????????## g # #???????????## # | | ?????????????????????# @ ##??????????# # | | ????????????????????## ! #????????### #? | | ????? ???????????# *########## #? | | ???? ??????## !!! """"## #?? | | ???? ##; [[[!! ##? | | ???? ## [ #? | | ???? #### ## | | ???? ""#?#"""""#### # | | ????? % # ""##?#######??#### * | | ????? #;###??????????????##### * | | ?????? # #?????????????????????### * | | ?????? ##????????????????????????### | | ?????? ????????????????????????????### | | ??????? #?????????????????????????????#" | | ??????? ##??????????????????????????????### | | ???????? ??????????????????????????????????? | | ???????? # ##???????????????????????????????????? | | ??????????##?????????????????????????????????????? | | ?????????????????????????????????????????????????? | | ?????????????????????????????????????????????????? | | ?????????????????????????????????????????????????? | | ?????????????????????????????????????????????????? | | ?????????????????????????????????????????????????? | | ?????????????????????????????????????????????????? | | ?????????????????????????????????????????????????? | +----------------------------------------------------+ Best States ------------- Heat Dissipation 25 Energy Generation 10 Energy Capacity 250 Matter Stores 300 Matter Capacity 300 Sight Range 16 Terrain Scan Density 10 Armor Coverage 300 Evasion (%) 40 Recoil Reduction 2 Item Schematics ----------------- None Robot Schematics ------------------ None Fabricated ------------ Nothing Alien Tech Used ----------------- None Achievements -------------- None Challenges ------------ None Game ------ Seed TimingCentriumEdition Manual? 0 Play Time 00:15:23 Cumulative 245.7 hours Start 2024.08.30 @ 11:46:35 End 2024.08.30 @ 11:59:45 Sessions 3 Manual Loads 0 Difficulty Rogue Special Mode None Game No. 181 Rogue 181 Adventurer 0 Explorer 0 Win Type - Total 4 Types 4/0/0/0/0/0/0/0/0 Lore% 59 Gallery% 74 Achievement% 62 Wizard Run 0 Options --------- Layout 0 ASCII 0 Keyboard 1 Movement Numpad Keybinds 0 Fullscreen 2 Font 18/SmallcapsGlow Map View 76x50 Zoom Use 0% Tactical HUD 1 Map Filters NONE Filters NONE Steam 1 RUN: 43aeec3e-94ac-45de-9522-33582600c10f